fUST/lending_fUST_20250430
["ID","MTS","AMOUNT","RATE_DAILY","PERIOD"]
[359396850,1745987438786,-668.416933,0.00038355,14]
[359396851,1745987438796,-668.416933,0.00038355,14]
[359396852,1745987438806,-151.0,0.00038355,5]
[359396853,1745987438817,-153.62109331,0.00038355,5]
[359396854,1745987438827,-189.90093025,0.00038355,5]
[359396855,1745987438837,-214.8,0.00038355,5]
[359396856,1745987438846,-500.0,0.00038355,15]
[359396857,1745987438855,-500.0,0.00038355,15]
[359396858,1745987438865,-386.58037828,0.00038355,15]
[359396859,1745987438874,-451.86468332,0.00038355,15]
[359396860,1745987438883,-200.0,0.00038355,15]
[359396861,1745987438893,-160.0,0.00038356,3]
[359396862,1745987438902,-12110.3112808,0.00038356,3]
[359396870,1745987440872,-399.0,0.00038345,2]
[359396871,1745987440883,-601.0,0.00038356,3]
[359396872,1745987440895,-1023.51364811,0.00038356,3]
[359396885,1745987443580,-151.0,0.00038345,14]
[359396886,1745987443590,-151.0,0.00038355,14]
[359396887,1745987443600,-1959.75805476,0.00038356,3]
[359396888,1745987443636,-3159.0209325,0.00038356,3]
[359396889,1745987443647,-2800.77123252,0.00038356,3]
[359396890,1745987443659,-349.84870241,0.00038356,3]
[359396891,1745987443671,-714.49541537,0.00038356,3]
[359396892,1745987443683,-1022.77062496,0.00038356,3]
[359396893,1745987443694,-491.75158682,0.00038356,3]
[359396894,1745987443705,-1367.26537925,0.00038356,3]
[359396897,1745987446587,-254.13987057,0.00038256,2]
[359396898,1745987446644,-760.70388885,0.00038256,2]
[359396900,1745987446656,-20198.9648246,0.00038356,3]
[359396901,1745987446666,-152.327395,0.00038356,14]
[359396903,1745987446675,-152.163323,0.00038356,14]
[359396905,1745987446684,-151.0,0.00038356,14]
[359396906,1745987446693,-151.0,0.00038356,14]
[359396907,1745987446702,-151.444379,0.00038356,14]
[359396908,1745987446711,-400.0,0.00038356,5]
[359396909,1745987446720,-400.0,0.00038356,5]
[359396910,1745987446729,-400.0,0.00038356,5]
[359396911,1745987446738,-400.0,0.00038356,5]
[359396912,1745987446747,-400.0,0.00038356,5]
[359396913,1745987446756,-443.2925147,0.00038356,5]
[359396914,1745987446765,-400.0,0.00038356,5]
[359396915,1745987446775,-506.44881868,0.00038356,5]
[359396916,1745987446784,-400.0,0.00038356,5]
[359396917,1745987446793,-400.0,0.00038356,5]
[359396918,1745987446803,-400.0,0.00038356,5]
[359396919,1745987446811,-400.0,0.00038356,5]
[359396920,1745987446820,-439.49093274,0.00038356,5]
[359396921,1745987446830,-232.208377,0.00038356,14]
[359396922,1745987446840,-201.60990659,0.00038356,5]
[359396923,1745987446849,-347.25004654,0.00038356,5]
[359396924,1745987446859,-400.0,0.00038356,5]
[359396925,1745987446868,-400.0,0.00038356,5]
[359396926,1745987446877,-400.0,0.00038356,5]
[359396927,1745987446886,-400.0,0.00038356,5]
[359396928,1745987446895,-151.0,0.00038356,14]
[359396929,1745987446905,-151.0,0.00038356,14]
[359396930,1745987446914,-264.27012,0.00038356,14]
[359396931,1745987446923,-500.86535037,0.00038356,5]
[359396932,1745987446932,-151.0,0.00038356,2]
[359396933,1745987446942,-151.0,0.00038356,2]
[359396934,1745987446952,-151.0,0.00038356,2]
[359396935,1745987446962,-151.0,0.00038356,2]
[359396936,1745987446971,-151.0,0.00038356,2]
[359396937,1745987446980,-151.0,0.00038356,2]
[359396938,1745987446990,-151.0,0.00038356,2]
[359396939,1745987446999,-157.092622,0.00038356,2]
[359396940,1745987447008,-522.82009871,0.00038356,5]
[359396941,1745987447018,-1000.0,0.00038356,5]
[359396942,1745987447027,-1000.0,0.00038356,5]
[359396943,1745987447036,-553.1659952,0.00038356,5]
[359396944,1745987447045,-400.0,0.00038356,5]
[359396945,1745987447054,-400.0,0.00038356,5]
[359396946,1745987447064,-400.0,0.00038356,5]
[359396947,1745987447073,-202.79043872,0.00038356,5]
[359396948,1745987447082,-505.79481317,0.00038356,5]
[359396949,1745987447092,-508.10144775,0.00038356,5]
[359396950,1745987447101,-400.0,0.00038356,5]
[359396951,1745987447110,-400.0,0.00038356,5]
[359396952,1745987447119,-400.0,0.00038356,5]
[359396953,1745987447130,-400.0,0.00038356,5]
[359396954,1745987447141,-400.0,0.00038356,5]
[359396955,1745987447151,-400.0,0.00038356,5]
[359396956,1745987447161,-400.0,0.00038356,5]
[359396957,1745987447172,-400.0,0.00038356,5]
[359396958,1745987447182,-400.0,0.00038356,5]
[359396959,1745987447191,-400.0,0.00038356,5]
[359396960,1745987447201,-400.0,0.00038356,5]
[359396961,1745987447210,-400.0,0.00038356,5]
[359396962,1745987447220,-400.0,0.00038356,5]
[359396963,1745987447229,-395.43138161,0.00038356,5]
[359396964,1745987447239,-400.0,0.00038356,5]
[359396965,1745987447248,-400.0,0.00038356,5]
[359396966,1745987447257,-400.0,0.00038356,5]
[359396967,1745987447266,-400.0,0.00038356,5]
[359396968,1745987447276,-400.0,0.00038356,5]
[359396969,1745987447286,-405.10443017,0.00038356,5]
[359396970,1745987447295,-400.0,0.00038356,5]
[359396971,1745987447304,-400.0,0.00038356,5]
[359396972,1745987447314,-400.0,0.00038356,5]
[359396973,1745987447323,-400.0,0.00038356,5]
[359396974,1745987447332,-255.23362931,0.00038356,5]
[359396975,1745987447343,-400.0,0.00038356,5]
[359396976,1745987447352,-224.34859632,0.00038356,5]
[359396977,1745987447362,-400.0,0.00038356,5]
[359396978,1745987447371,-400.0,0.00038356,5]
[359396979,1745987447381,-400.0,0.00038356,5]
[359396980,1745987447390,-400.0,0.00038356,5]
[359396981,1745987447399,-400.0,0.00038356,5]
[359396982,1745987447409,-400.0,0.00038356,5]
[359396983,1745987447418,-400.0,0.00038356,5]
[359396984,1745987447428,-400.0,0.00038356,5]
[359396985,1745987447438,-400.0,0.00038356,5]
[359396986,1745987447447,-341.2633777,0.00038356,5]
[359396987,1745987447456,-400.0,0.00038356,5]
[359396988,1745987447465,-400.0,0.00038356,5]
[359396989,1745987447474,-400.0,0.00038356,5]
[359396990,1745987447484,-504.77866536,0.00038356,5]
[359396991,1745987447493,-400.0,0.00038356,5]
[359396992,1745987447503,-400.0,0.00038356,5]
[359396993,1745987447512,-400.0,0.00038356,5]
[359396994,1745987447521,-400.0,0.00038356,5]
[359396995,1745987447530,-504.34113574,0.00038356,5]
[359396996,1745987447540,-206.18880014,0.00038356,5]
[359396997,1745987447550,-400.0,0.00038356,5]
[359396998,1745987447560,-400.0,0.00038356,5]
[359396999,1745987447570,-400.0,0.00038356,5]
[359397000,1745987447582,-400.0,0.00038356,5]
[359397001,1745987447592,-400.0,0.00038356,5]
[359397002,1745987447601,-400.0,0.00038356,5]
[359397003,1745987447611,-507.25837536,0.00038356,5]
[359397004,1745987447621,-400.0,0.00038356,5]
[359397005,1745987447630,-400.0,0.00038356,5]
[359397006,1745987447639,-400.0,0.00038356,5]
[359397007,1745987447649,-400.0,0.00038356,5]
[359397008,1745987447659,-400.0,0.00038356,5]
[359397009,1745987447669,-400.0,0.00038356,5]
[359397010,1745987447678,-400.0,0.00038356,5]
[359397011,1745987447688,-257.70409008,0.00038356,5]
[359397012,1745987447697,-400.0,0.00038356,5]
[359397013,1745987447706,-400.0,0.00038356,5]
[359397014,1745987447716,-268.18257877,0.00038356,5]
[359397015,1745987447725,-400.0,0.00038356,5]
[359397016,1745987447734,-400.0,0.00038356,5]
[359397017,1745987447743,-400.0,0.00038356,5]
[359397018,1745987447753,-400.0,0.00038356,5]
[359397019,1745987447763,-500.85002415,0.00038356,5]
[359397020,1745987447772,-400.0,0.00038356,5]
[359397021,1745987447781,-400.0,0.00038356,5]
[359397022,1745987447790,-400.0,0.00038356,5]
[359397023,1745987447799,-400.0,0.00038356,5]
[359397024,1745987447809,-400.0,0.00038356,5]
[359397025,1745987447819,-400.0,0.00038356,5]
[359397026,1745987447828,-232.88192309,0.00038356,5]
[359397027,1745987447838,-400.0,0.00038356,5]
[359397028,1745987447848,-400.0,0.00038356,5]
[359397029,1745987447857,-508.3085204,0.00038356,5]
[359397030,1745987447867,-502.20278566,0.00038356,5]
[359397031,1745987447876,-326.29449686,0.00038356,5]
[359397032,1745987447886,-400.0,0.00038356,5]
[359397033,1745987447895,-400.0,0.00038356,5]
[359397034,1745987447904,-400.0,0.00038356,5]
[359397035,1745987447914,-400.0,0.00038356,5]
[359397036,1745987447923,-400.0,0.00038356,5]
[359397037,1745987447932,-200.0,0.00038356,5]
[359397038,1745987447942,-400.0,0.00038356,5]
[359397039,1745987447951,-400.0,0.00038356,5]
[359397040,1745987447960,-400.0,0.00038356,5]
[359397041,1745987447969,-400.0,0.00038356,5]
[359397042,1745987447978,-400.0,0.00038356,5]
[359397043,1745987447988,-400.0,0.00038356,5]
[359397044,1745987447997,-400.0,0.00038356,5]
[359397045,1745987448006,-400.0,0.00038356,5]
[359397046,1745987448015,-400.0,0.00038356,5]
[359397047,1745987448024,-400.0,0.00038356,5]
[359397048,1745987448034,-400.0,0.00038356,5]
[359397049,1745987448043,-405.65555973,0.00038356,5]
[359397050,1745987448052,-400.0,0.00038356,5]
[359397051,1745987448062,-400.0,0.00038356,5]
[359397052,1745987448071,-400.0,0.00038356,5]
[359397053,1745987448080,-400.0,0.00038356,5]
[359397054,1745987448089,-400.0,0.00038356,5]
[359397055,1745987448099,-216.75348093,0.00038356,5]
[359397056,1745987448108,-404.66918471,0.00038356,5]
[359397057,1745987448118,-220.97736656,0.00038356,5]
[359397058,1745987448127,-791.14,0.00038356,5]
[359397059,1745987448136,-400.0,0.00038356,5]
[359397060,1745987448146,-791.14,0.00038356,5]
[359397061,1745987448156,-304.83728023,0.00038356,5]
[359397062,1745987448165,-791.14,0.00038356,5]
[359397063,1745987448175,-791.14,0.00038356,5]
[359397064,1745987448185,-791.14,0.00038356,5]
[359397065,1745987448195,-791.14,0.00038356,5]
[359397066,1745987448204,-791.14,0.00038356,5]
[359397067,1745987448214,-791.14,0.00038356,5]
[359397068,1745987448224,-791.14,0.00038356,5]
[359397069,1745987448234,-400.0,0.00038356,5]
[359397070,1745987448243,-400.0,0.00038356,5]
[359397071,1745987448252,-791.14,0.00038356,5]
[359397072,1745987448261,-400.0,0.00038356,5]
[359397073,1745987448270,-791.14,0.00038356,5]
[359397074,1745987448279,-400.0,0.00038356,5]
[359397075,1745987448287,-791.14,0.00038356,5]
[359397076,1745987448296,-400.0,0.00038356,5]
[359397077,1745987448305,-400.0,0.00038356,5]
[359397078,1745987448314,-791.14,0.00038356,5]
[359397079,1745987448323,-400.0,0.00038356,5]
[359397080,1745987448332,-400.0,0.00038356,5]
[359397081,1745987448342,-660.84112845,0.00038356,5]
[359397082,1745987448420,-130.29887155,0.00038356,5]
[359397083,1745987448429,-400.0,0.00038356,5]
[359397084,1745987448438,-400.0,0.00038356,5]
[359397085,1745987448447,-705.82140335,0.00038356,5]
[359397086,1745987448460,-85.31859665,0.00038356,5]
[359397087,1745987448470,-400.0,0.00038356,5]
[359397088,1745987448480,-334.32975619,0.00038356,5]
[359397182,1745988429127,-272.867427,0.00027397,2]
[359397183,1745988429148,-300.0,0.00029999,2]
[359397184,1745988429168,-896.37942298,0.0003,2]
[359397185,1745988432099,-972.52836045,0.0003,2]
[359397187,1745988435108,-1167.1934999,0.0003,2]
[359397190,1745988444097,-5049.25862525,0.0003,2]
[359397191,1745988444120,-3000.0,0.00032136,7]
[359397192,1745988444142,-420.0,0.00032332,2]
[359397193,1745988444165,-1266.0,0.00032956,3]
[359397194,1745988444185,-1574.59930454,0.00032958,60]
[359397195,1745988451140,-1425.40069546,0.00032958,60]
[359397196,1745988451161,-272.867427,0.00033165,2]
[359397197,1745988451180,-3000.0,0.00033506,60]
[359397198,1745988451201,-160.0,0.00033887,2]
[359397199,1745988451222,-184.10116273,0.00033888,2]
[359397200,1745988451242,-35.78699739,0.00033889,2]
[359397202,1745988548129,-436.33693389,0.00033798,2]
[359397203,1745988548155,-3693.44,0.000338,2]
[359397204,1745988548177,-311.0,0.00033894,2]
[359397205,1745988548199,-191.885767,0.00033894,2]
[359397206,1745988548221,-10937.75818261,0.00033895,2]
[359397207,1745988548241,-429.0,0.00033897,2]
[359397208,1745988548260,-400.0,0.00033897,5]
[359397209,1745988548280,-506.33410994,0.00033897,5]
[359397210,1745988548299,-500.0,0.00033897,5]
[359397211,1745988548320,-500.0,0.00033897,5]
[359397212,1745988548339,-420.88,0.00033897,5]
[359397213,1745988548360,-400.0,0.00033897,5]
[359397214,1745988548381,-400.0,0.00033897,5]
[359397215,1745988548401,-272.50760179,0.00033897,5]
[359397216,1745988548424,-400.0,0.00033897,5]
[359397217,1745988548445,-400.0,0.00033897,5]
[359397218,1745988548619,-500.89006624,0.00033897,5]
[359397219,1745988548641,-400.0,0.00033897,5]
[359397220,1745988548662,-254.37880479,0.00033898,5]
[359397221,1745988548688,-400.0,0.00033898,5]
[359397222,1745988548716,-1443.07,0.00033898,5]
[359397223,1745988548743,-400.0,0.00033898,5]
[359397224,1745988548765,-751.87,0.00033898,5]
[359397225,1745988548788,-427.71526682,0.00033898,5]
[359397227,1745988565473,436.424585,0.00032492,2]
[359397228,1745988568107,-501.17702518,0.00033897,5]
[359397229,1745988568127,-500.0,0.00033897,5]
[359397230,1745988568151,-1382.94,0.00033897,5]
[359397231,1745988568174,-217.39587953,0.00033897,5]
[359397232,1745988568197,-496.14,0.00033897,5]
[359397233,1745988568222,-400.0,0.00033898,5]
[359397234,1745988568244,-3573.97,0.00033898,5]
[359397235,1745988568269,-400.0,0.00033898,5]
[359397236,1745988568291,-400.0,0.00033898,5]
[359397237,1745988568310,-400.0,0.00033898,5]
[359397238,1745988568331,-400.0,0.00033898,5]
[359397239,1745988568354,-400.0,0.00033898,5]
[359397240,1745988568377,-3375.07,0.00033898,5]
[359397241,1745988568397,-400.0,0.00033898,5]
[359397242,1745988568420,-400.0,0.00033898,5]
[359397243,1745988568441,-400.0,0.00033898,5]
[359397244,1745988568464,-402.28288631,0.00033898,5]
[359397245,1745988568487,-400.0,0.00033898,5]
[359397246,1745988568507,-400.0,0.00033898,5]
[359397247,1745988568530,-400.0,0.00033898,5]
[359397248,1745988568549,-400.0,0.00033898,5]
[359397249,1745988568571,-333.74257369,0.00033898,5]
[359397250,1745988568596,-400.0,0.00033898,5]
[359397251,1745988568616,-1011.75416096,0.00033898,5]
[359397252,1745988568636,-508.31406165,0.00033898,5]
[359397253,1745988568657,-515.71674155,0.00033898,5]
[359397254,1745988568676,-400.0,0.00033898,5]
[359397255,1745988568697,-184.10116273,0.00033898,2]
[359397256,1745988568716,-400.0,0.00033898,5]
[359397257,1745988568737,-400.0,0.00033898,5]
[359397258,1745988568757,-400.0,0.00033898,5]
[359397259,1745988568778,-1167.43,0.00033898,5]
[359397260,1745988568798,-501.4837838,0.00033898,5]
[359397261,1745988568819,-6423.89,0.00033898,5]
[359397262,1745988568840,-400.0,0.00033898,5]
[359397263,1745988568860,-400.0,0.00033898,5]
[359397264,1745988568880,-400.0,0.00033898,5]
[359397265,1745988568900,-400.0,0.00033898,5]
[359397266,1745988568921,-400.0,0.00033898,5]
[359397267,1745988568942,-4957.47,0.00033898,5]
[359397268,1745988568964,-697.9,0.00033898,5]
[359397269,1745988568985,-218.88737477,0.00033898,5]
[359397270,1745988569006,-400.0,0.00033898,5]
[359397271,1745988569028,-400.0,0.00033898,5]
[359397272,1745988569051,-401.41003549,0.00033898,5]
[359397273,1745988569072,-400.0,0.00033898,5]
[359397274,1745988569093,-400.0,0.00033898,5]
[359397275,1745988569115,-1730.74,0.00033898,5]
[359397276,1745988569134,-400.0,0.00033898,5]
[359397277,1745988569159,-400.0,0.00033898,5]
[359397278,1745988569178,-400.0,0.00033898,5]
[359397279,1745988569198,-400.0,0.00033898,5]
[359397280,1745988569219,-503.83216367,0.00033898,5]
[359397281,1745988569240,-400.0,0.00033898,5]
[359397282,1745988569259,-400.0,0.00033898,5]
[359397283,1745988569279,-400.0,0.00033898,5]
[359397284,1745988569300,-1761.17,0.00033898,5]
[359397285,1745988569320,-400.0,0.00033898,5]
[359397286,1745988569343,-400.0,0.00033898,5]
[359397287,1745988569363,-400.0,0.00033898,5]
[359397288,1745988569383,-400.0,0.00033898,5]
[359397289,1745988569402,-308.21366976,0.00033898,5]
[359397290,1745988569422,-437.43,0.00033898,5]
[359397291,1745988569441,-400.0,0.00033898,5]
[359397292,1745988569461,-400.0,0.00033898,5]
[359397293,1745988569481,-400.0,0.00033898,5]
[359397294,1745988569502,-500.0,0.00033898,5]
[359397295,1745988569522,-400.0,0.00033898,5]
[359397296,1745988569542,-506.49621405,0.00033898,5]
[359397297,1745988569564,-400.0,0.00033898,5]
[359397298,1745988569587,-3547.8,0.00033898,5]
[359397299,1745988569606,-1225.3,0.00033898,5]
[359397300,1745988569628,-858.2,0.00033898,5]
[359397301,1745988569648,-400.0,0.00033898,5]
[359397302,1745988569669,-400.0,0.00033898,5]
[359397303,1745988569689,-157.89691925,0.00033898,5]
[359397304,1745988569709,-400.0,0.00033898,5]
[359397305,1745988569728,-423.81,0.00033898,5]
[359397306,1745988569749,-1084.22,0.00033898,5]
[359397307,1745988569769,-401.81155237,0.00033898,5]
[359397308,1745988569789,-2009.6,0.00033898,5]
[359397309,1745988569808,-501.53713645,0.00033898,5]
[359397310,1745988569828,-534.90224878,0.00033898,5]
[359397311,1745988569848,-400.0,0.00033898,5]
[359397312,1745988569868,-402.92391108,0.00033898,5]
[359397313,1745988569888,-400.0,0.00033898,5]
[359397314,1745988569908,-400.0,0.00033898,5]
[359397315,1745988569929,-2306.08,0.00033898,5]
[359397316,1745988569950,-400.0,0.00033898,5]
[359397317,1745988569972,-400.0,0.00033898,5]
[359397318,1745988569997,-400.0,0.00033898,5]
[359397319,1745988570019,-413.76,0.00033898,5]
[359397320,1745988570040,-400.0,0.00033898,5]
[359397321,1745988570061,-400.0,0.00033898,5]
[359397322,1745988570081,-321.42893613,0.00033898,5]
[359397323,1745988570104,-476.03,0.00033898,5]
[359397324,1745988570124,-400.0,0.00033898,5]
[359397325,1745988570146,-182.27181406,0.00033898,5]
[359397326,1745988570167,-420.88,0.00033972,5]
[359397327,1745988570189,-263.90455548,0.00033972,5]
[359397328,1745988570208,-400.0,0.00033972,5]
[359397329,1745988570229,-401.70035363,0.00033972,5]
[359397330,1745988570249,-400.0,0.00033972,5]
[359397331,1745988570268,-400.0,0.00033972,5]
[359397332,1745988570288,-1382.94,0.00033972,5]
[359397333,1745988570309,-496.14,0.00033972,5]
[359397334,1745988570328,-253.0,0.00033973,3]
[359397335,1745988570349,-500.0,0.00033973,5]
[359397336,1745988570369,-500.0,0.00033973,5]
[359397337,1745988570388,-500.0,0.00033973,5]
[359397338,1745988570407,-500.0,0.00033973,2]
[359397339,1745988570426,-300.0,0.00033973,5]
[359397340,1745988570445,-500.0,0.00033973,5]
[359397341,1745988570465,-500.0,0.00033973,5]
[359397342,1745988570484,-500.0,0.00033973,5]
[359397343,1745988570503,-500.0,0.00033973,5]
[359397344,1745988570523,-285.559405,0.00033977,7]
[359397345,1745988570549,-500.0,0.00033977,2]
[359397346,1745988570577,-457.38632532,0.00033977,2]
[359397347,1745988570603,-500.0,0.00033977,2]
[359397348,1745988570626,-367751.347675,0.00033978,2]
[359397349,1745988570646,-10001.147737,0.00033978,2]
[359397350,1745988570668,-1666.85795616,0.00033979,2]
[359397351,1745988570688,-536.55,0.00033979,3]
[359397352,1745988570709,-420.88,0.00033987,5]
[359397353,1745988570731,-420.88,0.00033987,5]
[359397354,1745988570752,-420.88,0.00033987,5]
[359397355,1745988570772,-400.0,0.00033987,5]
[359397356,1745988570792,-400.0,0.00033987,5]
[359397357,1745988570812,-343.60186557,0.00033987,5]
[359397358,1745988570833,-400.0,0.00033987,5]
[359397359,1745988570854,-400.0,0.00033987,5]
[359397360,1745988570875,-502.36012514,0.00033987,5]
[359397361,1745988571028,-400.0,0.00033987,5]
[359397362,1745988571048,-452.23051336,0.00033987,5]
[359397363,1745988571070,-1382.94,0.00033987,5]
[359397364,1745988571090,-1382.94,0.00033987,5]
[359397365,1745988571110,-1382.94,0.00033987,5]
[359397366,1745988571129,-496.14,0.00033987,5]
[359397367,1745988571154,-496.14,0.00033987,5]
[359397368,1745988571175,-496.14,0.00033987,5]
[359397369,1745988571196,-400.0,0.00033988,5]
[359397370,1745988571215,-400.0,0.00033988,5]
[359397371,1745988571237,-220.69429014,0.00033988,5]
[359397372,1745988571257,-751.87,0.00033988,5]
[359397373,1745988571276,-751.87,0.00033988,5]
[359397374,1745988571296,-751.87,0.00033988,5]
[359397375,1745988571315,-751.87,0.00033988,5]
[359397376,1745988571335,-751.87,0.00033988,5]
[359397377,1745988571354,-751.87,0.00033988,5]
[359397378,1745988571373,-751.87,0.00033988,5]
[359397379,1745988571392,-751.87,0.00033988,5]
[359397380,1745988571412,-751.87,0.00033988,5]
[359397381,1745988571431,-400.0,0.00033988,5]
[359397382,1745988571450,-400.0,0.00033988,5]
[359397383,1745988571470,-400.0,0.00033988,5]
[359397384,1745988571489,-400.0,0.00033988,5]
[359397385,1745988571508,-400.0,0.00033988,5]
[359397386,1745988571527,-400.0,0.00033988,5]
[359397387,1745988571548,-3573.97,0.00033988,5]
[359397388,1745988571572,-400.0,0.00033988,5]
[359397389,1745988571592,-400.0,0.00033988,5]
[359397390,1745988571613,-3573.97,0.00033988,5]
[359397391,1745988571633,-400.0,0.00033988,5]
[359397392,1745988571655,-3573.97,0.00033988,5]
[359397393,1745988571675,-3573.97,0.00033988,5]
[359397394,1745988571695,-3573.97,0.00033988,5]
[359397395,1745988571715,-3573.97,0.00033988,5]
[359397396,1745988571735,-3573.97,0.00033988,5]
[359397397,1745988571756,-3573.97,0.00033988,5]
[359397398,1745988571776,-3573.97,0.00033988,5]
[359397399,1745988571796,-400.0,0.00033988,5]
[359397400,1745988571816,-400.0,0.00033988,5]
[359397401,1745988571837,-400.0,0.00033988,5]
[359397402,1745988571857,-400.0,0.00033988,5]
[359397403,1745988571877,-400.0,0.00033988,5]
[359397404,1745988571897,-400.0,0.00033988,5]
[359397405,1745988571917,-400.0,0.00033988,5]
[359397406,1745988571937,-400.0,0.00033988,5]
[359397407,1745988571957,-400.0,0.00033988,5]
[359397408,1745988571978,-400.0,0.00033988,5]
[359397409,1745988571999,-519.77788044,0.00033988,5]
[359397410,1745988572019,-400.0,0.00033988,5]
[359397411,1745988572038,-400.0,0.00033988,5]
[359397412,1745988572063,-400.0,0.00033988,5]
[359397413,1745988572082,-400.0,0.00033988,5]
[359397414,1745988572103,-400.0,0.00033988,5]
[359397415,1745988572123,-400.0,0.00033988,5]
[359397416,1745988572147,-400.0,0.00033988,5]
[359397417,1745988572166,-400.0,0.00033988,5]
[359397418,1745988572186,-400.0,0.00033988,5]
[359397419,1745988572205,-533.45189411,0.00033988,5]
[359397420,1745988572226,-400.0,0.00033988,5]
[359397421,1745988572246,-400.0,0.00033988,5]
[359397422,1745988572265,-425.03180587,0.00033988,5]
[359397423,1745988572284,-400.0,0.00033988,5]
[359397424,1745988572305,-400.0,0.00033988,5]
[359397425,1745988572325,-400.0,0.00033988,5]
[359397426,1745988572347,-400.0,0.00033988,5]
[359397427,1745988572365,-400.0,0.00033988,5]
[359397428,1745988572385,-400.0,0.00033988,5]
[359397429,1745988572405,-400.0,0.00033988,5]
[359397430,1745988572425,-3375.07,0.00033988,5]
[359397431,1745988572444,-400.0,0.00033988,5]
[359397432,1745988572466,-3375.07,0.00033988,5]
[359397433,1745988572486,-400.0,0.00033988,5]
[359397434,1745988572506,-3375.07,0.00033988,5]
[359397436,1745988572527,-3375.07,0.00033988,5]
[359397437,1745988572547,-3375.07,0.00033988,5]
[359397438,1745988572568,-3375.07,0.00033988,5]
[359397439,1745988572590,-3375.07,0.00033988,5]
[359397440,1745988572610,-501.25118012,0.00033988,5]
[359397441,1745988572631,-3375.07,0.00033988,5]
[359397442,1745988572651,-3375.07,0.00033988,5]
[359397443,1745988572672,-400.0,0.00033988,5]
[359397444,1745988572693,-400.0,0.00033988,5]
[359397445,1745988572713,-400.0,0.00033988,5]
[359397446,1745988572733,-400.0,0.00033988,5]
[359397447,1745988572753,-400.0,0.00033988,5]
[359397448,1745988572773,-400.0,0.00033988,5]
[359397449,1745988572793,-400.0,0.00033988,5]
[359397450,1745988572813,-400.0,0.00033988,5]
[359397451,1745988572835,-318.73872714,0.00033988,5]
[359397452,1745988572857,-400.0,0.00033988,5]
[359397453,1745988572878,-320.88542474,0.00033988,5]
[359397454,1745988572899,-400.0,0.00033988,5]
[359397455,1745988572919,-400.0,0.00033988,5]
[359397456,1745988572939,-308.88626414,0.00033988,5]
[359397457,1745988572960,-400.0,0.00033988,5]
[359397458,1745988572980,-400.0,0.00033988,5]
[359397459,1745988573000,-506.73751043,0.00033988,5]
[359397460,1745988573021,-400.0,0.00033988,5]
[359397461,1745988573042,-400.0,0.00033988,5]
[359397462,1745988573063,-400.0,0.00033988,5]
[359397463,1745988573085,-400.0,0.00033988,5]
[359397464,1745988573107,-400.0,0.00033988,5]
[359397465,1745988573128,-400.0,0.00033988,5]
[359397466,1745988573154,-400.0,0.00033988,5]
[359397467,1745988573175,-400.0,0.00033988,5]
[359397468,1745988573196,-361.13657957,0.00033988,5]
[359397469,1745988573216,-506.85539419,0.00033988,5]
[359397470,1745988573238,-400.0,0.00033988,5]
[359397471,1745988573259,-400.0,0.00033988,5]
[359397472,1745988573280,-400.0,0.00033988,5]